fUST/lending_fUST_20240617
["ID","MTS","AMOUNT","RATE_DAILY","PERIOD"]
[329712799,1718593850633,-508.72528386,0.00017066,2]
[329712801,1718593850644,-500.0,0.00017066,2]
[329712803,1718593850656,-500.0,0.00017066,2]
[329712805,1718593850667,-507.63044409,0.00017066,2]
[329712806,1718593850680,-503.72917571,0.00017066,2]
[329712808,1718593850691,-513.07327984,0.00017066,2]
[329712810,1718593850706,-401.60485972,0.00017066,2]
[329712812,1718593850717,-500.0,0.00017066,2]
[329712815,1718593850736,-500.0,0.00017066,2]
[329712816,1718593850747,-500.0,0.00017066,2]
[329712819,1718593850762,-500.0,0.00017066,2]
[329712821,1718593850774,-502.32434748,0.00017066,2]
[329712823,1718593850789,-533.13072413,0.00017066,2]
[329712825,1718593850800,-500.0,0.00017066,2]
[329712827,1718593850826,-500.0,0.00017066,2]
[329712829,1718593850844,-488.21437477,0.00017066,2]
[329712831,1718593850856,-500.0,0.00017066,2]
[329712832,1718593850870,-500.0,0.00017066,2]
[329712834,1718593850881,-500.0,0.00017066,2]
[329712836,1718593850892,-298.42932084,0.00017066,2]
[329712838,1718593850911,-500.0,0.00017066,2]
[329712840,1718593850925,-500.0,0.00017066,2]
[329712842,1718593850935,-500.0,0.00017066,2]
[329712843,1718593850953,-500.0,0.00017067,2]
[329712845,1718593850969,-500.0,0.00017067,2]
[329712848,1718593851010,-500.0,0.00017067,2]
[329712850,1718593851056,-500.0,0.00017067,2]
[329712852,1718593851072,-507.71453175,0.00017067,4]
[329712854,1718593851088,-509.12894903,0.00017067,2]
[329712855,1718593851099,-500.0,0.00017067,2]
[329712857,1718593851110,-501.11975913,0.00017067,2]
[329712859,1718593851128,-500.0,0.00017067,2]
[329712861,1718593851141,-505.4146408,0.00017067,2]
[329712863,1718593851154,-500.0,0.00017067,2]
[329712865,1718593851177,-500.0,0.00017067,2]
[329712867,1718593851195,-500.0,0.00017067,2]
[329712869,1718593851211,-502.38287065,0.00017067,2]
[329712871,1718593851222,-503.78141916,0.00017067,2]
[329712872,1718593851237,-500.96888756,0.00017067,2]
[329712873,1718593851248,-503.16376079,0.00017067,2]
[329712874,1718593851260,-500.0,0.00017067,2]
[329712875,1718593851271,-416.56043588,0.00017067,2]
[329712876,1718593851283,-500.0,0.00017067,2]
[329712877,1718593851300,-502.97485821,0.00017067,2]
[329712878,1718593851312,-500.0,0.00017067,2]
[329712879,1718593851328,-503.99097344,0.00017067,2]
[329712880,1718593851340,-500.0,0.00017067,2]
[329712881,1718593851351,-500.0,0.00017067,2]
[329712882,1718593851366,-502.93811058,0.00017067,2]
[329712883,1718593851382,-451.54249001,0.00017067,2]
[329712884,1718593851393,-501.83866596,0.00017067,2]
[329712885,1718593851406,-505.32294698,0.00017067,2]
[329712886,1718593851436,-505.09984611,0.00017067,2]
[329712887,1718593851448,-500.0,0.00017067,2]
[329712888,1718593851460,-500.0,0.00017067,2]
[329712889,1718593851491,-504.00501739,0.00017067,2]
[329712890,1718593851506,-506.12209343,0.00017067,2]
[329712891,1718593851518,-500.0,0.00017067,2]
[329712892,1718593851529,-533.65966093,0.00017067,2]
[329712893,1718593851540,-400.65786849,0.00017067,2]
[329712894,1718593851556,-500.0,0.00017067,2]
[329712895,1718593851566,-165.283084,0.00017067,2]
[329712896,1718593851578,-151.0,0.00017067,2]
[329712897,1718593851589,-151.0,0.00017067,2]
[329712898,1718593851613,-154.365356,0.00017067,2]
[329712899,1718593851631,-151.0,0.00017067,2]
[329712900,1718593851669,-151.0,0.00017067,2]
[329712901,1718593851688,-151.0,0.00017067,2]
[329712902,1718593851710,-151.0,0.00017067,2]
[329712903,1718593851741,-155.814256,0.00017067,2]
[329712904,1718593851759,-156.12175965,0.00017068,2]
[329712905,1718593851773,-155.18189716,0.00017068,2]
[329712906,1718593851785,-500.0,0.00017069,2]
[329712907,1718593851805,-575.92704871,0.00017069,2]
[329712908,1718593851822,-500.0,0.00017069,2]
[329712909,1718593851835,-500.0,0.00017069,2]
[329712910,1718593851852,-151.0,0.00017069,2]
[329712911,1718593851877,-151.0,0.00017069,2]
[329712912,1718593851890,-151.0,0.00017069,2]
[329712913,1718593851913,-17881.80309114,0.0001707,2]
[329712914,1718593851929,-151.0,0.0001707,2]
[329712915,1718593851941,-151.0,0.0001707,2]
[329712916,1718593851960,-153.858088,0.0001707,2]
[329712917,1718593851976,-152.675532,0.0001707,2]
[329712918,1718593852009,-151.0,0.0001707,2]
[329712919,1718593852023,-151.0,0.0001707,2]
[329712920,1718593852036,-151.0,0.0001707,2]
[329712921,1718593852079,-151.0,0.0001707,2]
[329712922,1718593852096,-215.307711,0.0001707,2]
[329712923,1718593852136,-151.0,0.0001707,2]
[329712924,1718593852164,-151.0,0.0001707,2]
[329712925,1718593852180,-500.0,0.0001707,2]
[329712926,1718593852208,-151.0,0.0001707,2]
[329712927,1718593852226,-151.0,0.0001707,2]
[329712928,1718593852255,-151.0,0.0001707,2]
[329712929,1718593852277,-151.0,0.0001707,2]
[329712930,1718593852301,-226.738613,0.0001707,2]
[329712931,1718593852313,-20000.0,0.00017071,2]
[329712932,1718593852326,-157.940772,0.00017071,2]
[329712933,1718593852340,-151.0,0.00017071,2]
[329712934,1718593852351,-151.0,0.00017071,2]
[329712935,1718593852363,-151.0,0.00017071,2]
[329712936,1718593852380,-158.747165,0.00017071,2]
[329712937,1718593852392,-151.0,0.00017071,2]
[329712938,1718593852405,-195.541638,0.00017071,2]
[329712939,1718593852416,-151.0,0.00017071,2]
[329712940,1718593852433,-151.0,0.00017071,2]
[329712941,1718593852446,-152.095423,0.00017071,2]
[329712942,1718593852457,-213.724505,0.00017071,2]
[329712943,1718593852492,-9980.49925361,0.00017312,2]
[329712944,1718593852521,-5000.0,0.00017312,2]
[329712945,1718593852533,-500.0,0.00017322,2]
[329712946,1718593852544,-1297.95,0.00017322,2]
[329712947,1718593852564,-6188.82252751,0.00017323,15]
[329712948,1718593852578,-517.34479704,0.00017323,2]
[329712949,1718593852609,-155.340003,0.00017323,2]
[329712950,1718593852645,-151.0,0.00017323,2]
[329712951,1718593852663,-500.0,0.00017323,2]
[329712952,1718593852675,-523.81017448,0.00017323,2]
[329712953,1718593852685,-642.56887559,0.00017323,2]
[329712954,1718593852703,-614.57663238,0.00017323,2]
[329712955,1718593852715,-490.43335896,0.00017323,2]
[329712956,1718593852733,-500.0,0.00017323,2]
[329712957,1718593852763,-500.0,0.00017323,2]
[329712958,1718593852798,-500.0,0.00017323,2]
[329712959,1718593852811,-500.0,0.00017323,2]
[329712960,1718593852823,-500.0,0.00017323,2]
[329712961,1718593852850,-151.0,0.00017323,2]
[329712962,1718593852870,-541.36,0.00017323,2]
[329712963,1718593852892,-500.0,0.00017323,2]
[329712964,1718593852903,-500.0,0.00017323,2]
[329712965,1718593852923,-500.0,0.00017323,2]
[329712966,1718593852934,-500.0,0.00017323,2]
[329712967,1718593852946,-500.0,0.00017323,2]
[329712968,1718593852960,-1594.07,0.00017323,2]
[329712969,1718593852976,-500.0,0.00017323,2]
[329712970,1718593852992,-500.0,0.00017323,2]
[329712971,1718593853003,-500.0,0.00017323,2]
[329712972,1718593853041,-500.0,0.00017323,2]
[329712973,1718593853065,-500.0,0.00017323,2]
[329712974,1718593853085,-500.0,0.00017323,2]
[329712975,1718593853100,-500.0,0.00017323,2]
[329712976,1718593853119,-500.0,0.00017323,2]
[329712977,1718593853150,-500.0,0.00017323,2]
[329712978,1718593853162,-527.75396569,0.00017323,2]
[329712979,1718593853192,-151.0,0.00017323,2]
[329712980,1718593853213,-151.0,0.00017323,2]
[329712981,1718593853234,-500.0,0.00017323,2]
[329712982,1718593853248,-500.0,0.00017323,2]
[329712983,1718593853264,-500.0,0.00017323,2]
[329712984,1718593853309,-500.0,0.00017323,2]
[329712985,1718593853321,-500.0,0.00017323,2]
[329712986,1718593853337,-500.0,0.00017323,2]
[329712987,1718593853359,-500.0,0.00017323,2]
[329712988,1718593853494,-501.60122687,0.00017323,2]
[329712989,1718593853516,-151.0,0.00017323,2]
[329712990,1718593853528,-151.0,0.00017323,2]
[329712991,1718593853542,-508.16136379,0.00017323,2]
[329712992,1718593853563,-151.0,0.00017323,2]
[329712993,1718593853588,-500.0,0.00017323,2]
[329712994,1718593853599,-291.665452,0.00017323,2]
[329712995,1718593853611,-500.0,0.00017323,2]
[329712996,1718593853624,-500.0,0.00017323,2]
[329712997,1718593853640,-1172.0,0.00017323,2]
[329712998,1718593853654,-500.0,0.00017323,2]
[329712999,1718593853677,-500.0,0.00017323,2]
[329713000,1718593853704,-269.13415341,0.00017323,2]
[329713001,1718593853734,-500.0,0.00017323,2]
[329713002,1718593853757,-1763.4,0.00017323,2]
[329713003,1718593853773,-500.0,0.00017323,2]
[329713004,1718593853801,-500.0,0.00017323,2]
[329713005,1718593853828,-500.0,0.00017323,2]
[329713006,1718593853845,-500.0,0.00017323,2]
[329713007,1718593853866,-500.0,0.0001734,2]
[329713008,1718593853877,-523.40759116,0.0001734,2]
[329713009,1718593853889,-514.95377597,0.0001734,2]
[329713010,1718593853910,-500.0,0.0001734,2]
[329713011,1718593853927,-500.0,0.0001734,2]
[329713012,1718593853953,-500.0,0.0001734,2]
[329713013,1718593853975,-500.0,0.0001734,2]
[329713014,1718593853992,-151.0,0.0001734,2]
[329713015,1718593854004,-502.69252912,0.0001734,2]
[329713016,1718593854016,-510.37987669,0.0001734,2]
[329713017,1718593854031,-500.0,0.0001734,2]
[329713018,1718593854062,-510.38640505,0.0001734,2]
[329713019,1718593854080,-500.0,0.0001734,2]
[329713020,1718593854092,-500.0,0.0001734,2]
[329713021,1718593854116,-505.94580093,0.00017341,2]
[329713022,1718593854142,-500.0,0.00017341,2]
[329713023,1718593854155,-507.72667951,0.00017341,2]
[329713024,1718593854171,-510.62212565,0.00017341,2]
[329713025,1718593854253,-504.83921333,0.00017341,2]
[329713026,1718593854310,-504.50609366,0.00017341,2]
[329713027,1718593854326,-505.71924489,0.00017341,2]
[329713028,1718593854343,-341.41993423,0.00017341,2]
[329713029,1718593854353,-500.0,0.00017341,2]
[329713030,1718593854376,-523.91290321,0.00017341,2]
[329713032,1718593854390,-413.83903898,0.00017341,2]
[329713033,1718593854403,-504.94934498,0.00017341,2]
[329713034,1718593854439,-500.0,0.00017341,2]
[329713035,1718593854452,-501.99592172,0.00017341,2]
[329713036,1718593854463,-505.67333984,0.00017341,2]
[329713037,1718593854483,-151.0,0.00017341,2]
[329713038,1718593854494,-512.55536864,0.00017341,2]
[329713039,1718593854505,-151.0,0.00017341,2]
[329713040,1718593854536,-151.0,0.00017341,2]
[329713041,1718593854549,-151.0,0.00017341,2]
[329713042,1718593854561,-151.0,0.00017344,2]
[329713043,1718593854572,-500.0,0.00017596,2]
[329713044,1718593854587,-1297.95,0.00017596,2]
[329713045,1718593854602,-15238.21376374,0.00017596,13]
[329713046,1718593854620,-500.0,0.00017597,2]
[329713047,1718593854640,-500.0,0.00017597,2]
[329713048,1718593854677,-500.0,0.00017597,2]
[329713049,1718593854700,-500.0,0.00017597,2]
[329713050,1718593854713,-500.0,0.00017597,2]
[329713051,1718593854731,-500.0,0.00017597,2]
[329713052,1718593854761,-151.0,0.00017597,2]
[329713053,1718593854778,-541.36,0.00017597,2]
[329713054,1718593854792,-500.0,0.00017597,2]
[329713056,1718593854805,-500.0,0.00017597,2]
[329713058,1718593854824,-500.0,0.00017597,2]
[329713060,1718593854842,-515.34609557,0.00017597,2]
[329713061,1718593854876,-500.0,0.00017597,2]
[329713062,1718593854896,-1594.07,0.00017597,2]
[329713063,1718593854968,-500.0,0.00017597,2]
[329713064,1718593855003,-500.0,0.00017597,2]
[329713065,1718593855036,-500.0,0.00017597,2]
[329713066,1718593855061,-500.0,0.00017597,2]
[329713067,1718593855078,-500.0,0.00017597,2]
[329713068,1718593855093,-500.0,0.00017597,2]
[329713069,1718593855106,-500.0,0.00017597,2]
[329713072,1718593855149,-500.0,0.00017597,2]
[329713073,1718593855166,-500.0,0.00017597,2]
[329713075,1718593855179,-151.0,0.00017597,2]
[329713077,1718593855192,-500.0,0.00017597,2]
[329713079,1718593855210,-500.0,0.00017597,2]
[329713081,1718593855252,-500.0,0.00017597,2]
[329713083,1718593855324,-500.0,0.00017597,2]
[329713084,1718593855356,-500.0,0.00017597,2]
[329713085,1718593855393,-500.0,0.00017597,2]
[329713086,1718593855409,-500.0,0.00017597,2]
[329713087,1718593855433,-151.0,0.00017597,2]
[329713088,1718593855447,-500.0,0.00017597,2]
[329713089,1718593855473,-1172.0,0.00017597,2]
[329713090,1718593855509,-503.48344658,0.00017597,2]
[329713091,1718593855532,-1763.4,0.00017597,2]
[329713092,1718593855554,-500.0,0.00017597,2]
[329713093,1718593855580,-500.0,0.00017597,2]
[329713094,1718593855607,-500.0,0.00017613,2]
[329713095,1718593855634,-500.0,0.00017614,2]
[329713097,1718593855650,-500.0,0.00017614,2]
[329713099,1718593855669,-500.0,0.00017614,2]
[329713101,1718593855694,-500.0,0.00017614,2]
[329713102,1718593855716,-151.0,0.00017614,2]
[329713103,1718593855741,-151.0,0.00017614,2]
[329713104,1718593855767,-513.01213694,0.00017617,2]
[329713107,1718593855796,-151.0,0.00017618,2]
[329713108,1718593855814,-151.0,0.00017808,2]
[329713109,1718593855836,-500.0,0.0001787,2]
[329713110,1718593855860,-1297.95,0.0001787,2]
[329713111,1718593855898,-521.01041551,0.00017871,2]
[329713112,1718593855913,-557.39,0.00017871,2]
[329713113,1718593855957,-500.0,0.00017871,2]
[329713114,1718593855969,-518.31526428,0.00017871,2]
[329713115,1718593855982,-500.0,0.00017871,2]
[329713116,1718593856023,-500.0,0.00017871,2]
[329713117,1718593856050,-541.36,0.00017871,2]
[329713118,1718593856064,-500.0,0.00017871,2]
[329713119,1718593856081,-500.0,0.00017871,2]
[329713120,1718593856096,-500.0,0.00017871,2]
[329713121,1718593856126,-500.0,0.00017871,2]
[329713122,1718593856153,-1594.07,0.00017871,2]
[329713123,1718593856172,-500.0,0.00017871,2]
[329713124,1718593856191,-500.0,0.00017871,2]
[329713125,1718593856209,-500.0,0.00017871,2]
[329713126,1718593856237,-500.0,0.00017871,2]
[329713127,1718593856250,-524.15926122,0.00017871,2]
[329713128,1718593856264,-500.0,0.00017871,2]
[329713129,1718593856293,-500.0,0.00017871,2]
[329713130,1718593856308,-500.0,0.00017871,2]
[329713131,1718593856358,-500.0,0.00017871,2]
[329713132,1718593856405,-151.0,0.00017871,2]
[329713133,1718593856448,-500.0,0.00017871,2]
[329713134,1718593856460,-500.0,0.00017871,2]
[329713135,1718593856474,-500.0,0.00017871,2]
[329713136,1718593856493,-500.0,0.00017871,2]
[329713137,1718593856506,-507.06030194,0.00017871,2]
[329713138,1718593856521,-151.0,0.00017871,2]
[329713139,1718593856532,-500.0,0.00017871,2]
[329713140,1718593856548,-1172.0,0.00017871,2]
[329713141,1718593856566,-1763.4,0.00017871,2]
[329713142,1718593856596,-500.0,0.00017871,2]
[329713143,1718593856618,-296.72,0.00017871,2]
[329713144,1718593856636,-513.53077147,0.00017888,2]
[329713145,1718593856658,-500.0,0.00017999,2]
[329713146,1718593856679,-5300.79613059,0.00018,2]
[329713147,1718593856692,-1683.94321185,0.00018,2]
[329713148,1718593856706,-155.0,0.00018,2]
[329713149,1718593856719,-915.49784627,0.00018,2]
[329713150,1718593856734,-88888.0,0.00018045,2]
[329713151,1718593856745,-151.0,0.00018045,2]
[329713152,1718593856761,-292.7278245,0.00018075,2]
[329713153,1718593856773,-151.0,0.00018082,2]
[329713154,1718593856794,-515.32457142,0.00018144,2]
[329713155,1718593856807,-1297.95,0.00018144,2]
[329713156,1718593856826,-642.42,0.00018145,2]
[329713157,1718593856839,-500.0,0.00018145,2]
[329713158,1718593856854,-500.0,0.00018145,2]
[329713159,1718593856869,-541.36,0.00018145,2]
[329713160,1718593856883,-518.80000037,0.00018145,2]
[329713161,1718593856897,-500.0,0.00018145,2]
[329713162,1718593856933,-500.0,0.00018145,2]
[329713163,1718593856972,-1594.07,0.00018145,2]
[329713164,1718593856994,-500.0,0.00018145,2]
[329713165,1718593857028,-533.9567357,0.00018145,2]
[329713166,1718593857053,-267.09,0.00018145,2]
[329713167,1718593857069,-500.0,0.00018145,2]
[329713168,1718593857106,-500.0,0.00018145,2]
[329713169,1718593857149,-500.0,0.00018145,2]
[329713170,1718593857174,-151.0,0.00018145,2]
[329713171,1718593857194,-500.0,0.00018145,2]
[329713172,1718593857237,-500.0,0.00018145,2]
[329713173,1718593857262,-500.0,0.00018145,2]
[329713174,1718593857282,-1172.0,0.00018145,2]
[329713175,1718593857293,-1763.4,0.00018145,2]
[329713176,1718593857333,-500.0,0.00018145,2]
[329713177,1718593857346,-151.0,0.00018356,2]
[329713178,1718593857358,-1297.95,0.00018418,2]
[329713179,1718593857371,-500.0,0.00018419,2]
[329713180,1718593857397,-500.0,0.00018419,2]
[329713181,1718593857418,-541.36,0.00018419,2]
[329713182,1718593857434,-500.0,0.00018419,2]
[329713183,1718593857446,-500.0,0.00018419,2]
[329713184,1718593857457,-1594.07,0.00018419,2]
[329713185,1718593857471,-500.0,0.00018419,2]
[329713186,1718593857484,-500.0,0.00018419,2]
[329713187,1718593857496,-500.0,0.00018419,2]
[329713188,1718593857507,-500.0,0.00018419,2]
[329713189,1718593857522,-500.0,0.00018419,2]
[329713190,1718593857533,-1172.0,0.00018419,2]
[329713191,1718593857544,-1763.4,0.00018419,2]
[329713192,1718593857556,-500.0,0.00018419,2]
[329713193,1718593857568,-500.0,0.00018436,2]
[329713194,1718593857604,-500.0,0.00018439,2]
[329713195,1718593857625,-151.0,0.0001863,2]
[329713196,1718593857637,-250.0,0.0001863,2]
[329713197,1718593857653,-1297.95,0.00018692,2]
[329713198,1718593857676,-500.0,0.00018693,2]
[329713199,1718593857687,-500.0,0.00018693,2]
[329713200,1718593857706,-541.36,0.00018693,2]
[329713201,1718593857749,-572.99806362,0.00018693,2]
[329713202,1718593857764,-500.0,0.00018693,2]
[329713203,1718593857793,-1594.07,0.00018693,2]
[329713204,1718593857813,-500.0,0.00018693,2]
[329713205,1718593857831,-500.0,0.00018693,2]
[329713206,1718593857860,-500.0,0.00018693,2]
[329713207,1718593857877,-500.0,0.00018693,2]
[329713208,1718593857900,-1172.0,0.00018693,2]
[329713209,1718593857911,-1763.4,0.00018693,2]
[329713210,1718593857947,-500.0,0.00018693,2]
[329713211,1718593857977,-403.39805573,0.00018799,2]
[329713212,1718593858002,-150.0,0.00018848,2]
[329713213,1718593858014,-150.0,0.00018848,2]
[329713214,1718593858025,-500.0,0.00018884,2]
[329713215,1718593858037,-500.0,0.00018884,2]
[329713216,1718593858077,-260.71999646,0.00018899,2]
[329713217,1718593858100,-151.0,0.00018904,2]
[329713218,1718593858125,-1297.95,0.00018966,2]
[329713219,1718593858136,-500.0,0.00018967,2]
[329713220,1718593858164,-500.0,0.00018967,2]
[329713221,1718593858178,-541.36,0.00018967,2]
[329713222,1718593858198,-500.0,0.00018967,2]
[329713223,1718593858210,-1594.07,0.00018967,2]
[329713224,1718593858221,-500.0,0.00018967,2]
[329713225,1718593858261,-500.0,0.00018967,2]
[329713226,1718593858300,-500.0,0.00018967,2]
[329713227,1718593858317,-500.0,0.00018967,2]
[329713228,1718593858336,-1172.0,0.00018967,2]
[329713229,1718593858349,-1763.4,0.00018967,2]
[329713230,1718593858362,-500.0,0.00018967,2]
[329713231,1718593858375,-351.704719,0.00018986,2]
[329713232,1718593858406,-500.0,0.00018987,2]
[329713233,1718593858418,-1502.7368125,0.00018995,2]
[329713234,1718593858433,-313.2749162,0.00019,2]
[329713235,1718593858451,-674.0,0.00019,2]
[329713236,1718593858467,-10728.0,0.00019,2]
[329713237,1718593858478,-1967.296785,0.00019,2]
[329713238,1718593858490,-155.12021038,0.00019076,2]
[329713239,1718593858510,-432.84,0.00019077,2]
[329713240,1718593858548,-185.33861303,0.000191,2]
[329713241,1718593858563,-2294.70505321,0.00019178,2]
[329713242,1718593858581,-2294.70505321,0.00019178,2]
[329713243,1718593858593,-2294.70505321,0.00019178,2]
[329713244,1718593858618,-2294.70505321,0.00019178,2]
[329713245,1718593858635,-2294.70505321,0.00019178,2]
[329713246,1718593858647,-2294.70505321,0.00019178,2]
[329713247,1718593858661,-2294.70505321,0.00019178,2]
[329713248,1718593858674,-2294.70505321,0.00019178,2]
[329713249,1718593858686,-2294.70505321,0.00019178,2]
[329713250,1718593858697,-2294.70505321,0.00019178,2]
[329713251,1718593858708,-1105.80181407,0.00019178,2]
[329713252,1718593858943,-4240.09516277,0.00017049,2]
[329713253,1718593858962,-1188.90323914,0.00019178,2]
[329713254,1718593858975,-1466.7315981,0.00019178,2]
[329713255,1718593858992,-827.97345511,0.00019178,2]
[329713256,1718593859012,-2294.70505321,0.00019178,2]
[329713257,1718593859025,-2294.70505321,0.00019178,2]
[329713258,1718593859037,-2294.70505321,0.00019178,2]
[329713259,1718593859048,-2294.70505321,0.00019178,2]
[329713260,1718593859059,-778.01395126,0.00019178,2]
[329713261,1718593859080,-1516.69110195,0.00019178,2]
[329713262,1718593859104,-1424.11009532,0.00019178,2]
[329713263,1718594017544,3000.0,0.000225,30]
[329713265,1718594611423,3000.0,0.000225,30]
[329713314,1718595034918,-243.5195729,0.00015755,2]
[329713315,1718595034940,-178.0527346,0.00015764,2]
[329713316,1718595034953,-1061.2319282,0.00015985,2]
[329713317,1718595034988,-150.0,0.00016276,2]
[329713318,1718595035006,-275.84951764,0.000165,2]
[329713319,1718595035018,-300.0,0.00017046,2]
[329713320,1718595035057,-2803.97883055,0.00017047,2]
[329713321,1718595035071,-933.5287611,0.00017047,2]
[329713516,1718595050104,-6029.82859437,0.00017047,2]
[329713517,1718595212129,3000.0,0.000225,30]
[329713523,1718595810270,3000.0,0.000225,30]
[329713590,1718596235788,-658.12668409,0.00016,2]
[329713597,1718596235949,-523.47458787,0.00016,2]
[329713658,1718596241422,-174.82784761,0.00016,2]
[329713659,1718596241450,-150.0,0.00016354,2]
[329713660,1718596241477,-150.234,0.00016354,2]
[329713661,1718596241494,-275.84951764,0.000165,2]
[329713662,1718596241508,-528.81507091,0.00017,2]
[329713663,1718596241653,-6225.49482617,0.00017,2]
[329713664,1718596241666,-300.0,0.00017067,2]
[329713665,1718596241697,-2803.46821683,0.00017068,2]
[329713666,1718596241711,-757.92405935,0.00017068,2]
[329713680,1718596248403,-354.2,0.00017068,2]
[329713681,1718596248604,-533.58561713,0.00017068,2]
[329713682,1718596248619,-136.93295998,0.00017068,2]
[329713683,1718596248629,-9866.30934704,0.00017069,13]
[329713693,1718596250843,-8584.84277435,0.00017069,13]
[329713694,1718596251155,-342.80499812,0.00017069,13]
[329713696,1718596412275,3000.0,0.000225,30]
[329713697,1718596496665,415.18,0.00010959,2]
[329713698,1718596940442,1544.61,0.00023287,120]
[329713699,1718596941130,1544.61,0.00023561,120]
[329713700,1718597012143,3000.0,0.000225,30]
[329713759,1718597436424,-300.0,0.00016051,2]
[329713761,1718597436438,-21911.4983525,0.00016052,2]
[329713763,1718597436464,-150.0,0.00016357,2]
[329713765,1718597436479,-275.84951764,0.000165,2]
[329713767,1718597436493,-5014.53586536,0.0001681,2]
[329713769,1718597436510,-158.8140083,0.00016968,2]
[329713771,1718597436532,-3585.32480989,0.00017052,2]
[329713773,1718597436556,-500.0,0.00017067,2]
[329713775,1718597436569,-500.0,0.00017067,2]
[329713778,1718597436599,-508.06924076,0.00017067,2]
[329713780,1718597436626,-500.0,0.00017067,2]
[329713783,1718597436650,-500.0,0.00017067,2]
[329713785,1718597436662,-195.90820561,0.00017067,2]
[329713911,1718597440263,-304.09179439,0.00017067,2]
[329713912,1718597440278,-500.0,0.00017067,2]
[329713915,1718597440300,-500.0,0.00017067,2]
[329713917,1718597440321,-397.67965144,0.00017067,2]
[329713919,1718597440337,-102.32034856,0.00017067,2]
[329713920,1718597440352,-500.0,0.00017067,2]
[329713922,1718597440366,-500.0,0.00017067,2]
[329713924,1718597440393,-500.0,0.00017067,2]
[329713926,1718597440426,-500.0,0.00017067,2]
[329713928,1718597440451,-500.0,0.00017067,2]
[329713931,1718597440468,-500.0,0.00017067,2]
[329713933,1718597440492,-500.0,0.00017067,2]
[329713935,1718597440527,-500.0,0.00017067,2]
[329713936,1718597440541,-1182.84,0.00017067,2]
[329713938,1718597440553,-15.57965144,0.00017068,13]
[329713941,1718597440570,-683.3362703,0.00017068,13]
[329713943,1718597440584,-908.95806516,0.00017068,13]
[329714417,1718597450147,-1386.53,0.00017067,2]
[329714418,1718597450163,-500.0,0.00017067,2]
[329714419,1718597450180,-8269.03384416,0.00017068,13]
[329714420,1718597450232,-639.84077954,0.00017068,2]
[329714421,1718597450249,-500.0,0.00017068,2]
[329714422,1718597450276,-506.43802092,0.00017068,2]
[329714423,1718597450292,-500.0,0.00017068,2]
[329714424,1718597450307,-500.0,0.00017068,2]
[329714425,1718597450323,-500.0,0.00017068,2]
[329714426,1718597450337,-500.0,0.00017068,2]
[329714427,1718597450370,-500.0,0.00017068,2]
[329714428,1718597450383,-508.60881184,0.00017068,2]
[329714429,1718597450412,-500.0,0.00017068,2]
[329714430,1718597450432,-564.51586674,0.00017068,2]
[329714431,1718597450456,-500.0,0.00017068,2]
[329714432,1718597450469,-500.0,0.00017068,2]
[329714433,1718597450482,-500.0,0.00017068,2]
[329714434,1718597450509,-500.0,0.00017068,2]
[329714435,1718597450522,-503.32024401,0.00017068,2]
[329714436,1718597450534,-500.0,0.00017068,2]
[329714437,1718597450547,-504.40390417,0.00017068,2]
[329714438,1718597450559,-512.2394021,0.00017068,2]